[Event "Titled Tuesday Blitz July 4 Early 2023"]
[White "Warchol, Kamil"]
[Black "Solovchuk, Oleksiy"]
[WhiteFideId "21858241"]
[BlackFideId "14115220"]
[WhiteElo "2235"]
[BlackElo "2567"]
[Result "0-1"]
[Round "1"]
[TimeControl "180+2"]
[Date "2023.07.04"]
[WhiteClock "0:00:03"]
[BlackClock "0:00:18"]
[Board "188"]

1. e4 {[%clk 0:02:58]}  c5 {[%clk 0:02:58]} 2. Nf3 {[%clk 0:02:56]}  d6 {[%clk 0:02:56]} 3. d4 {[%clk 0:02:56]}  cxd4 {[%clk 0:02:57]} 4. Nxd4 {[%clk 0:02:57]}  Nf6 {[%clk 0:02:57]} 5. Nc3 {[%clk 0:02:55]}  a6 {[%clk 0:02:57]} 6. f4 {[%clk 0:02:48]}  g6 {[%clk 0:02:56]} 7. e5 {[%clk 0:02:42]}  dxe5 {[%clk 0:02:53]} 8. fxe5 {[%clk 0:02:41]}  Nd5 {[%clk 0:02:53]} 9. Bc4 {[%clk 0:02:40]}  Nxc3 {[%clk 0:02:46]} 10. bxc3 {[%clk 0:02:41]}  Bg7 {[%clk 0:02:46]} 11. O-O {[%clk 0:02:36]}  O-O {[%clk 0:02:37]} 12. Qd3 {[%clk 0:02:21]}  e6 {[%clk 0:02:23]} 13. Bf4 {[%clk 0:01:40]}  Nd7 {[%clk 0:02:16]} 14. Rae1 {[%clk 0:01:26]}  b5 {[%clk 0:02:11]} 15. Bb3 {[%clk 0:01:22]}  Nc5 {[%clk 0:02:10]} 16. Qg3 {[%clk 0:01:08]}  Nxb3 {[%clk 0:01:54]} 17. cxb3 {[%clk 0:00:52]}  h6 {[%clk 0:01:52]} 18. Qe3 {[%clk 0:00:48]}  g5 {[%clk 0:01:39]} 19. Bg3 {[%clk 0:00:44]}  Bb7 {[%clk 0:01:37]} 20. Qf2 {[%clk 0:00:39]}  Rc8 {[%clk 0:01:32]} 21. Re3 {[%clk 0:00:36]}  b4 {[%clk 0:01:25]} 22. Ne2 {[%clk 0:00:31]}  bxc3 {[%clk 0:01:19]} 23. Nxc3 {[%clk 0:00:30]}  Qd4 {[%clk 0:01:12]} 24. Ne2 {[%clk 0:00:28]}  Qd2 {[%clk 0:01:08]} 25. h4 {[%clk 0:00:27]}  Rc2 {[%clk 0:01:06]} 26. hxg5 {[%clk 0:00:26]}  hxg5 {[%clk 0:01:06]} 27. Kh1 {[%clk 0:00:16]}  Rxa2 {[%clk 0:01:02]} 28. Kh2 {[%clk 0:00:14]}  a5 {[%clk 0:00:56]} 29. Nc1 {[%clk 0:00:11]}  Qxf2 {[%clk 0:00:54]} 30. Rxf2 {[%clk 0:00:08]}  Rxf2 {[%clk 0:00:51]} 31. Bxf2 {[%clk 0:00:09]}  Rc8 {[%clk 0:00:49]} 32. Nd3 {[%clk 0:00:09]}  Rc3 {[%clk 0:00:48]} 33. Ne1 {[%clk 0:00:03]}  Rxe3 {[%clk 0:00:47]} 34. Bxe3 {[%clk 0:00:04]}  Bxe5+ {[%clk 0:00:47]} 35. Kg1 {[%clk 0:00:04]}  f6 {[%clk 0:00:48]} 36. Kf1 {[%clk 0:00:05]}  Bd5 {[%clk 0:00:46]} 37. Ke2 {[%clk 0:00:06]}  Bxb3 {[%clk 0:00:46]} 38. Kd2 {[%clk 0:00:06]}  a4 {[%clk 0:00:46]} 39. Nd3 {[%clk 0:00:07]}  Bd6 {[%clk 0:00:45]} 40. Bd4 {[%clk 0:00:07]}  e5 {[%clk 0:00:44]} 41. Ba1 {[%clk 0:00:08]}  Kf7 {[%clk 0:00:44]} 42. Nc1 {[%clk 0:00:09]}  Bc5 {[%clk 0:00:40]} 43. Kd3 {[%clk 0:00:08]}  Ke6 {[%clk 0:00:39]} 44. Bc3 {[%clk 0:00:07]}  Bd5 {[%clk 0:00:39]} 45. Ba1 {[%clk 0:00:07]}  Bxg2 {[%clk 0:00:38]} 46. Ne2 {[%clk 0:00:05]}  f5 {[%clk 0:00:36]} 47. Nc3 {[%clk 0:00:06]}  Bd5 {[%clk 0:00:35]} 48. Nxa4 {[%clk 0:00:05]}  e4+ {[%clk 0:00:28]} 49. Kd2 {[%clk 0:00:04]}  Bb4+ {[%clk 0:00:27]} 50. Nc3 {[%clk 0:00:02]}  f4 {[%clk 0:00:26]} 51. Ke2 {[%clk 0:00:03]}  Bc4+ {[%clk 0:00:25]} 52. Kf2 {[%clk 0:00:02]}  e3+ {[%clk 0:00:23]} 53. Ke1 {[%clk 0:00:02]}  Kf5 {[%clk 0:00:22]} 54. Kd1 {[%clk 0:00:02]}  g4 {[%clk 0:00:20]} 55. Ne2 {[%clk 0:00:02]}  Bb3+ {[%clk 0:00:20]} 56. Kc1 {[%clk 0:00:02]}  Ke4 {[%clk 0:00:21]} 57. Nc3+ {[%clk 0:00:02]}  Bxc3 {[%clk 0:00:19]} 58. Bxc3 {[%clk 0:00:01]}  g3 {[%clk 0:00:20]} 59. Kb2 {[%clk 0:00:01]}  g2 {[%clk 0:00:19]} 60. Ka3 {[%clk 0:00:02]}  Bc4 {[%clk 0:00:19]} 61. Kb4 {[%clk 0:00:02]}  Bd3 {[%clk 0:00:19]} 62. Kc5 {[%clk 0:00:02]}  g1=Q {[%clk 0:00:19]} 63. Bb4 {[%clk 0:00:03]}  Qb1 {[%clk 0:00:19]} 64. Kb6 {[%clk 0:00:04]}  Qxb4+ {[%clk 0:00:19]} 65. Kc7 {[%clk 0:00:05]}  Qc5+ {[%clk 0:00:19]} 66. Kd7 {[%clk 0:00:06]}  Qb6 {[%clk 0:00:19]} 67. Ke7 {[%clk 0:00:06]}  Bc4 {[%clk 0:00:19]} 68. Kf8 {[%clk 0:00:06]}  Qa7 {[%clk 0:00:18]} 69. Ke8 {[%clk 0:00:03]}  Qc7 {[%clk 0:00:18]} 0-1


[Site "https://www.chess.com"]

[Event "Titled Tuesday Blitz July 4 Early 2023"]
[White "Parpiev, Isaak"]
[Black "tomobeast"]
[WhiteFideId "34281576"]
[WhiteElo "2566"]
[BlackElo "2220"]
[Result "0-1"]
[Round "1"]
[TimeControl "180+2"]
[Date "2023.07.04"]
[WhiteClock "0:00:01"]
[BlackClock "0:00:12"]
[Board "191"]

1. Nf3 {[%clk 0:02:58]}  Nf6 {[%clk 0:02:55]} 2. b3 {[%clk 0:02:58]}  g6 {[%clk 0:02:53]} 3. Bb2 {[%clk 0:02:58]}  Bg7 {[%clk 0:02:53]} 4. g3 {[%clk 0:02:59]}  O-O {[%clk 0:02:53]} 5. Bg2 {[%clk 0:02:59]}  d6 {[%clk 0:02:51]} 6. d4 {[%clk 0:03:00]}  Nbd7 {[%clk 0:02:44]} 7. O-O {[%clk 0:02:59]}  b6 {[%clk 0:02:44]} 8. c4 {[%clk 0:02:58]}  Bb7 {[%clk 0:02:31]} 9. Nc3 {[%clk 0:02:46]}  e5 {[%clk 0:02:28]} 10. Qc2 {[%clk 0:02:22]}  Re8 {[%clk 0:02:12]} 11. d5 {[%clk 0:02:05]}  a5 {[%clk 0:02:06]} 12. e4 {[%clk 0:02:04]}  Nc5 {[%clk 0:01:55]} 13. Nd2 {[%clk 0:02:05]}  Bc8 {[%clk 0:01:50]} 14. a3 {[%clk 0:02:04]}  Na6 {[%clk 0:01:28]} 15. Nd1 {[%clk 0:01:57]}  h5 {[%clk 0:01:24]} 16. h4 {[%clk 0:01:47]}  Ng4 {[%clk 0:01:23]} 17. Bc3 {[%clk 0:01:42]}  f5 {[%clk 0:01:22]} 18. exf5 {[%clk 0:01:30]}  Bxf5 {[%clk 0:00:58]} 19. Ne4 {[%clk 0:01:23]}  Nc5 {[%clk 0:00:56]} 20. f3 {[%clk 0:01:14]}  Nf6 {[%clk 0:00:54]} 21. Ndf2 {[%clk 0:01:04]}  Rf8 {[%clk 0:00:39]} 22. b4 {[%clk 0:01:01]}  axb4 {[%clk 0:00:38]} 23. axb4 {[%clk 0:01:02]}  Ncxe4 {[%clk 0:00:38]} 24. fxe4 {[%clk 0:00:51]}  Bd7 {[%clk 0:00:37]} 25. Qe2 {[%clk 0:00:49]}  Ng4 {[%clk 0:00:36]} 26. Nh3 {[%clk 0:00:45]}  Bh6 {[%clk 0:00:32]} 27. Kh1 {[%clk 0:00:32]}  Rxf1+ {[%clk 0:00:29]} 28. Rxf1 {[%clk 0:00:32]}  Ne3 {[%clk 0:00:29]} 29. Re1 {[%clk 0:00:16]}  Bg4 {[%clk 0:00:26]} 30. Qf2 {[%clk 0:00:11]}  Ra3 {[%clk 0:00:21]} 31. Bd2 {[%clk 0:00:11]}  Nxg2 {[%clk 0:00:16]} 32. Bxh6 {[%clk 0:00:10]}  Nxe1 {[%clk 0:00:15]} 33. Qxe1 {[%clk 0:00:03]}  Bxh3 {[%clk 0:00:16]} 34. Qf2 {[%clk 0:00:02]}  Qe7 {[%clk 0:00:13]} 35. Kh2 {[%clk 0:00:02]}  Bg4 {[%clk 0:00:12]} 36. c5 {[%clk 0:00:02]}  Qf7 {[%clk 0:00:12]} 37. Qxf7+ {[%clk 0:00:01]}  Kxf7 {[%clk 0:00:12]} 38. cxd6 {[%clk 0:00:01]}  cxd6 {[%clk 0:00:12]} 0-1


[Site "https://www.chess.com"]

[Event "Titled Tuesday Blitz July 4 Early 2023"]
[White "WindWhistler11"]
[Black "Tsyhanchuk, Stanislav"]
[BlackFideId "13505130"]
[WhiteElo "2565"]
[BlackElo "2209"]
[Result "0-1"]
[Round "1"]
[TimeControl "180+2"]
[Date "2023.07.04"]
[WhiteClock "0:00:00"]
[BlackClock "0:00:04"]
[Board "193"]

1. Nf3 {[%clk 0:02:59]}  Nf6 {[%clk 0:02:59]} 2. g3 {[%clk 0:02:59]}  d5 {[%clk 0:02:59]} 3. c4 {[%clk 0:03:00]}  d4 {[%clk 0:02:57]} 4. e3 {[%clk 0:02:59]}  c5 {[%clk 0:02:57]} 5. exd4 {[%clk 0:02:59]}  cxd4 {[%clk 0:02:57]} 6. d3 {[%clk 0:02:59]}  h6 {[%clk 0:02:56]} 7. Bg2 {[%clk 0:02:59]}  Nc6 {[%clk 0:02:56]} 8. O-O {[%clk 0:03:00]}  e6 {[%clk 0:02:55]} 9. Na3 {[%clk 0:02:20]}  Bc5 {[%clk 0:02:43]} 10. Nc2 {[%clk 0:02:19]}  a5 {[%clk 0:02:40]} 11. Rb1 {[%clk 0:02:11]}  O-O {[%clk 0:02:40]} 12. b3 {[%clk 0:02:10]}  e5 {[%clk 0:02:35]} 13. Nd2 {[%clk 0:01:59]}  Bf5 {[%clk 0:02:31]} 14. Qe2 {[%clk 0:01:49]}  Re8 {[%clk 0:02:23]} 15. f3 {[%clk 0:01:47]}  Nb4 {[%clk 0:02:08]} 16. Nxb4 {[%clk 0:01:12]}  axb4 {[%clk 0:02:09]} 17. Ne4 {[%clk 0:01:12]}  Nxe4 {[%clk 0:02:00]} 18. fxe4 {[%clk 0:01:11]}  Be6 {[%clk 0:01:59]} 19. Rf5 {[%clk 0:00:44]}  Bxf5 {[%clk 0:01:49]} 20. exf5 {[%clk 0:00:45]}  Qf6 {[%clk 0:01:30]} 21. g4 {[%clk 0:00:32]}  Rab8 {[%clk 0:01:24]} 22. Qf2 {[%clk 0:00:29]}  b5 {[%clk 0:01:19]} 23. Bd5 {[%clk 0:00:23]}  bxc4 {[%clk 0:01:05]} 24. bxc4 {[%clk 0:00:24]}  Rbc8 {[%clk 0:01:00]} 25. Kg2 {[%clk 0:00:23]}  Red8 {[%clk 0:00:49]} 26. Be4 {[%clk 0:00:20]}  Rc7 {[%clk 0:00:44]} 27. h4 {[%clk 0:00:20]}  Ra7 {[%clk 0:00:43]} 28. g5 {[%clk 0:00:19]}  hxg5 {[%clk 0:00:43]} 29. hxg5 {[%clk 0:00:20]}  Qa6 {[%clk 0:00:42]} 30. Rb2 {[%clk 0:00:19]}  Kf8 {[%clk 0:00:38]} 31. Qh4 {[%clk 0:00:17]}  Ke7 {[%clk 0:00:34]} 32. Qh7 {[%clk 0:00:12]}  Raa8 {[%clk 0:00:24]} 33. Qxg7 {[%clk 0:00:11]}  Qd6 {[%clk 0:00:16]} 34. Bd5 {[%clk 0:00:08]}  Rf8 {[%clk 0:00:13]} 35. g6 {[%clk 0:00:07]}  Ra3 {[%clk 0:00:11]} 36. Bg5+ {[%clk 0:00:06]}  Kd7 {[%clk 0:00:08]} 37. Bxf7 {[%clk 0:00:05]}  Kc6 {[%clk 0:00:07]} 38. Bd5+ {[%clk 0:00:00]}  Kb6 {[%clk 0:00:04]} 0-1


[Site "https://www.chess.com"]

[Event "Titled Tuesday Blitz July 4 Early 2023"]
[White "Cueto, Jonny"]
[Black "Mamedov, Edgar"]
[WhiteFideId "3300145"]
[BlackFideId "13739980"]
[WhiteElo "2208"]
[BlackElo "2564"]
[Result "0-1"]
[Round "1"]
[TimeControl "180+2"]
[Date "2023.07.04"]
[WhiteClock "0:00:12"]
[BlackClock "0:00:44"]
[Board "194"]

1. d4 {[%clk 0:02:56]}  d5 {[%clk 0:02:58]} 2. Bf4 {[%clk 0:02:56]}  Nf6 {[%clk 0:02:57]} 3. e3 {[%clk 0:02:57]}  e6 {[%clk 0:02:57]} 4. Nf3 {[%clk 0:02:57]}  Bd6 {[%clk 0:02:58]} 5. Ne5 {[%clk 0:02:58]}  O-O {[%clk 0:02:58]} 6. Nd2 {[%clk 0:02:58]}  c5 {[%clk 0:02:57]} 7. c3 {[%clk 0:02:58]}  Nc6 {[%clk 0:02:57]} 8. Bd3 {[%clk 0:02:59]}  Qc7 {[%clk 0:02:57]} 9. Ndf3 {[%clk 0:02:59]}  Ne4 {[%clk 0:02:54]} 10. O-O {[%clk 0:02:58]}  Ne7 {[%clk 0:02:47]} 11. h3 {[%clk 0:02:54]}  f6 {[%clk 0:02:46]} 12. Ng4 {[%clk 0:02:34]}  Bxf4 {[%clk 0:02:45]} 13. exf4 {[%clk 0:02:35]}  Qxf4 {[%clk 0:02:45]} 14. Re1 {[%clk 0:02:30]}  Bd7 {[%clk 0:02:39]} 15. g3 {[%clk 0:02:08]}  Qc7 {[%clk 0:02:31]} 16. Bxe4 {[%clk 0:02:07]}  dxe4 {[%clk 0:02:31]} 17. Rxe4 {[%clk 0:02:07]}  f5 {[%clk 0:02:31]} 18. Re1 {[%clk 0:01:42]}  fxg4 {[%clk 0:02:29]} 19. hxg4 {[%clk 0:01:43]}  Ng6 {[%clk 0:02:16]} 20. Qd3 {[%clk 0:01:31]}  c4 {[%clk 0:02:12]} 21. Qe3 {[%clk 0:01:27]}  Rae8 {[%clk 0:02:08]} 22. Rad1 {[%clk 0:01:24]}  Bc6 {[%clk 0:02:07]} 23. Ng5 {[%clk 0:01:22]}  Bd5 {[%clk 0:02:02]} 24. f4 {[%clk 0:01:19]}  h6 {[%clk 0:01:59]} 25. Ne4 {[%clk 0:01:12]}  Nxf4 {[%clk 0:01:50]} 26. gxf4 {[%clk 0:01:07]}  Rxf4 {[%clk 0:01:49]} 27. Nf2 {[%clk 0:00:57]}  Ref8 {[%clk 0:01:44]} 28. Rd2 {[%clk 0:00:54]}  Rf3 {[%clk 0:01:21]} 29. Qe5 {[%clk 0:00:53]}  Qf7 {[%clk 0:01:13]} 30. Ree2 {[%clk 0:00:41]}  Qg6 {[%clk 0:01:08]} 31. Qh5 {[%clk 0:00:32]}  Rg3+ {[%clk 0:01:00]} 32. Kh2 {[%clk 0:00:28]}  Rg2+ {[%clk 0:00:58]} 33. Kh3 {[%clk 0:00:20]}  Rf3+ {[%clk 0:00:45]} 34. Kxg2 {[%clk 0:00:15]}  Rf5+ {[%clk 0:00:45]} 35. Kf1 {[%clk 0:00:13]}  Rxh5 {[%clk 0:00:45]} 36. gxh5 {[%clk 0:00:13]}  Qg2+ {[%clk 0:00:43]} 37. Ke1 {[%clk 0:00:12]}  Qg1# {[%clk 0:00:44]} 0-1


[Site "https://www.chess.com"]

[Event "Titled Tuesday Blitz July 4 Early 2023"]
[White "Nakhbayeva, Guliskhan"]
[Black "Gontcharov, Vladislav"]
[WhiteFideId "13704788"]
[BlackFideId "4123492"]
[WhiteElo "2203"]
[BlackElo "2561"]
[Result "0-1"]
[Round "1"]
[TimeControl "180+2"]
[Date "2023.07.04"]
[WhiteClock "0:00:00"]
[BlackClock "0:00:51"]
[Board "198"]

1. d4 {[%clk 0:03:00]}  Nf6 {[%clk 0:02:57]} 2. Nf3 {[%clk 0:02:58]}  c5 {[%clk 0:02:53]} 3. d5 {[%clk 0:02:57]}  e6 {[%clk 0:02:53]} 4. c4 {[%clk 0:02:57]}  exd5 {[%clk 0:02:52]} 5. cxd5 {[%clk 0:02:58]}  d6 {[%clk 0:02:52]} 6. Nc3 {[%clk 0:02:58]}  g6 {[%clk 0:02:52]} 7. e4 {[%clk 0:02:59]}  Bg7 {[%clk 0:02:51]} 8. h3 {[%clk 0:02:59]}  O-O {[%clk 0:02:51]} 9. Bd3 {[%clk 0:02:58]}  b5 {[%clk 0:02:46]} 10. Nxb5 {[%clk 0:02:27]}  Re8 {[%clk 0:02:42]} 11. Nc3 {[%clk 0:02:26]}  Nxe4 {[%clk 0:02:38]} 12. Nxe4 {[%clk 0:02:24]}  f5 {[%clk 0:02:35]} 13. Nd2 {[%clk 0:02:16]}  fxe4 {[%clk 0:02:33]} 14. Nxe4 {[%clk 0:02:16]}  Bf5 {[%clk 0:02:25]} 15. Qc2 {[%clk 0:02:10]}  Bxe4 {[%clk 0:02:16]} 16. Bxe4 {[%clk 0:02:05]}  Qh4 {[%clk 0:02:14]} 17. O-O {[%clk 0:01:29]}  Qxe4 {[%clk 0:02:12]} 18. Qb3 {[%clk 0:01:25]}  Nd7 {[%clk 0:02:10]} 19. Qb7 {[%clk 0:01:13]}  Nb6 {[%clk 0:02:06]} 20. Be3 {[%clk 0:00:58]}  Qxd5 {[%clk 0:02:02]} 21. Qc7 {[%clk 0:00:55]}  Nc4 {[%clk 0:01:41]} 22. Rad1 {[%clk 0:00:40]}  Qf7 {[%clk 0:01:40]} 23. Qc6 {[%clk 0:00:28]}  Rac8 {[%clk 0:01:38]} 24. Qa6 {[%clk 0:00:23]}  Be5 {[%clk 0:01:27]} 25. Bc1 {[%clk 0:00:14]}  Nb6 {[%clk 0:01:26]} 26. b3 {[%clk 0:00:08]}  d5 {[%clk 0:01:20]} 27. a4 {[%clk 0:00:03]}  Bd4 {[%clk 0:01:12]} 28. a5 {[%clk 0:00:02]}  Na8 {[%clk 0:01:11]} 29. Qd3 {[%clk 0:00:01]}  Qf5 {[%clk 0:00:57]} 30. b4 {[%clk 0:00:01]}  Qxd3 {[%clk 0:00:56]} 31. Rxd3 {[%clk 0:00:02]}  Nc7 {[%clk 0:00:56]} 32. bxc5 {[%clk 0:00:02]}  Bxc5 {[%clk 0:00:55]} 33. Bb2 {[%clk 0:00:00]}  Re2 {[%clk 0:00:51]} 0-1


[Site "https://www.chess.com"]

[Event "Titled Tuesday Blitz July 4 Early 2023"]
[White "Thiel, Thomas"]
[Black "Perez Candelario, Manuel"]
[WhiteFideId "4615964"]
[BlackFideId "2210622"]
[WhiteElo "2200"]
[BlackElo "2560"]
[Result "0-1"]
[Round "1"]
[TimeControl "180+2"]
[Date "2023.07.04"]
[WhiteClock "0:01:23"]
[BlackClock "0:01:22"]
[Board "200"]

1. e4 {[%clk 0:03:00]}  c5 {[%clk 0:02:59]} 2. Nc3 {[%clk 0:02:59]}  g6 {[%clk 0:02:58]} 3. d4 {[%clk 0:02:57]}  cxd4 {[%clk 0:02:58]} 4. Qxd4 {[%clk 0:02:58]}  Nf6 {[%clk 0:02:58]} 5. Be3 {[%clk 0:02:57]}  Nc6 {[%clk 0:02:57]} 6. Qd2 {[%clk 0:02:56]}  Bg7 {[%clk 0:02:56]} 7. f3 {[%clk 0:02:55]}  O-O {[%clk 0:02:55]} 8. Nge2 {[%clk 0:02:55]}  Ne5 {[%clk 0:02:18]} 9. Nf4 {[%clk 0:02:54]}  d6 {[%clk 0:02:15]} 10. h4 {[%clk 0:02:50]}  h5 {[%clk 0:02:14]} 11. O-O-O {[%clk 0:02:48]}  Bd7 {[%clk 0:02:13]} 12. Be2 {[%clk 0:02:42]}  Rc8 {[%clk 0:02:09]} 13. Nfd5 {[%clk 0:02:35]}  Be6 {[%clk 0:01:45]} 14. Bxa7 {[%clk 0:02:31]}  Bxd5 {[%clk 0:01:43]} 15. Nxd5 {[%clk 0:02:29]}  Nxd5 {[%clk 0:01:42]} 16. Qxd5 {[%clk 0:02:29]}  b6 {[%clk 0:01:30]} 17. Qb7 {[%clk 0:02:15]}  Nd7 {[%clk 0:01:27]} 18. Qa6 {[%clk 0:01:23]}  Qc7 {[%clk 0:01:22]} 0-1


[Site "https://www.chess.com"]

[Event "Titled Tuesday Blitz July 4 Early 2023"]
[White "Kiseleva, Arina"]
[Black "Mortazavi, Ali"]
[WhiteFideId "4164989"]
[BlackFideId "401323"]
[WhiteElo "2195"]
[BlackElo "2558"]
[Result "0-1"]
[Round "1"]
[TimeControl "180+2"]
[Date "2023.07.04"]
[WhiteClock "0:00:02"]
[BlackClock "0:01:07"]
[Board "202"]

1. d4 {[%clk 0:03:00]}  Nf6 {[%clk 0:02:59]} 2. Nf3 {[%clk 0:03:00]}  g6 {[%clk 0:03:00]} 3. Nbd2 {[%clk 0:02:58]}  Bg7 {[%clk 0:02:58]} 4. b3 {[%clk 0:02:57]}  d6 {[%clk 0:02:59]} 5. Bb2 {[%clk 0:02:57]}  O-O {[%clk 0:03:00]} 6. e3 {[%clk 0:02:56]}  c5 {[%clk 0:02:57]} 7. Bd3 {[%clk 0:02:55]}  cxd4 {[%clk 0:02:54]} 8. exd4 {[%clk 0:02:54]}  Nc6 {[%clk 0:02:54]} 9. O-O {[%clk 0:02:51]}  b6 {[%clk 0:02:49]} 10. c4 {[%clk 0:02:46]}  d5 {[%clk 0:02:47]} 11. Ne5 {[%clk 0:02:30]}  Nb4 {[%clk 0:02:36]} 12. Be2 {[%clk 0:02:23]}  Bb7 {[%clk 0:02:36]} 13. a3 {[%clk 0:02:20]}  Nc6 {[%clk 0:02:36]} 14. Nxc6 {[%clk 0:02:16]}  Bxc6 {[%clk 0:02:36]} 15. Nf3 {[%clk 0:02:14]}  Ne4 {[%clk 0:02:23]} 16. Rc1 {[%clk 0:02:06]}  Rc8 {[%clk 0:02:16]} 17. Ne5 {[%clk 0:02:03]}  Bb7 {[%clk 0:02:16]} 18. f3 {[%clk 0:01:28]}  Nf6 {[%clk 0:02:06]} 19. c5 {[%clk 0:01:22]}  bxc5 {[%clk 0:02:04]} 20. dxc5 {[%clk 0:01:22]}  Nd7 {[%clk 0:01:45]} 21. Nxd7 {[%clk 0:01:01]}  Bxb2 {[%clk 0:01:38]} 22. Nxf8 {[%clk 0:00:58]}  Bxa3 {[%clk 0:01:25]} 23. Nxg6 {[%clk 0:00:30]}  hxg6 {[%clk 0:01:20]} 24. Qd4 {[%clk 0:00:19]}  Bxc1 {[%clk 0:01:19]} 25. Rxc1 {[%clk 0:00:18]}  a5 {[%clk 0:01:13]} 26. f4 {[%clk 0:00:17]}  e6 {[%clk 0:01:12]} 27. Bf3 {[%clk 0:00:16]}  Bc6 {[%clk 0:01:10]} 28. h4 {[%clk 0:00:11]}  Qxh4 {[%clk 0:01:08]} 29. Qc3 {[%clk 0:00:05]}  Qxf4 {[%clk 0:01:07]} 30. Qxa5 {[%clk 0:00:02]}  Qxc1+ {[%clk 0:01:07]} 0-1


[Site "https://www.chess.com"]

[Event "Titled Tuesday Blitz July 4 Early 2023"]
[White "only_strong_moves"]
[Black "Fernandez Hernandez, Gerardo"]
[BlackFideId "2207400"]
[WhiteElo "2558"]
[BlackElo "2188"]
[Result "0-1"]
[Round "1"]
[TimeControl "180+2"]
[Date "2023.07.04"]
[WhiteClock "0:00:26"]
[BlackClock "0:00:08"]
[Board "203"]

1. c4 {[%clk 0:02:59]}  e5 {[%clk 0:02:59]} 2. Nc3 {[%clk 0:02:58]}  Nc6 {[%clk 0:02:58]} 3. Nf3 {[%clk 0:02:56]}  f5 {[%clk 0:02:57]} 4. d3 {[%clk 0:02:50]}  Nf6 {[%clk 0:02:56]} 5. g3 {[%clk 0:02:45]}  Bb4 {[%clk 0:02:54]} 6. Bg2 {[%clk 0:02:39]}  d6 {[%clk 0:02:53]} 7. O-O {[%clk 0:02:39]}  O-O {[%clk 0:02:52]} 8. Bg5 {[%clk 0:02:35]}  Bxc3 {[%clk 0:02:51]} 9. bxc3 {[%clk 0:02:35]}  Qe8 {[%clk 0:02:50]} 10. Rb1 {[%clk 0:02:08]}  Qh5 {[%clk 0:02:34]} 11. Bxf6 {[%clk 0:01:41]}  Rxf6 {[%clk 0:02:33]} 12. e3 {[%clk 0:01:37]}  f4 {[%clk 0:02:15]} 13. Nd2 {[%clk 0:01:24]}  Bg4 {[%clk 0:02:01]} 14. f3 {[%clk 0:01:12]}  Bc8 {[%clk 0:01:44]} 15. exf4 {[%clk 0:01:10]}  exf4 {[%clk 0:01:38]} 16. g4 {[%clk 0:01:04]}  Qa5 {[%clk 0:01:23]} 17. Qe2 {[%clk 0:00:56]}  Rf8 {[%clk 0:01:11]} 18. Ne4 {[%clk 0:00:51]}  b6 {[%clk 0:00:55]} 19. Rb5 {[%clk 0:00:46]}  Qa6 {[%clk 0:00:48]} 20. d4 {[%clk 0:00:45]}  Bd7 {[%clk 0:00:41]} 21. Rbb1 {[%clk 0:00:28]}  Rae8 {[%clk 0:00:39]} 22. Qd3 {[%clk 0:00:20]}  Na5 {[%clk 0:00:36]} 23. Rb4 {[%clk 0:00:21]}  Nc6 {[%clk 0:00:34]} 24. Rb5 {[%clk 0:00:18]}  Na5 {[%clk 0:00:32]} 25. Rb4 {[%clk 0:00:18]}  Nc6 {[%clk 0:00:32]} 26. Rb2 {[%clk 0:00:18]}  Na5 {[%clk 0:00:32]} 27. Nd2 {[%clk 0:00:17]}  Re3 {[%clk 0:00:29]} 28. Qc2 {[%clk 0:00:15]}  Nxc4 {[%clk 0:00:28]} 29. Nxc4 {[%clk 0:00:11]}  Qxc4 {[%clk 0:00:29]} 30. Rbb1 {[%clk 0:00:10]}  Re2 {[%clk 0:00:20]} 31. Qc1 {[%clk 0:00:09]}  Qxa2 {[%clk 0:00:18]} 32. Bh3 {[%clk 0:00:08]}  Rxh2 {[%clk 0:00:16]} 33. Ra1 {[%clk 0:00:08]}  Qe2 {[%clk 0:00:13]} 34. Qe1 {[%clk 0:00:06]}  Qxe1 {[%clk 0:00:09]} 35. Rfxe1 {[%clk 0:00:07]}  Rxh3 {[%clk 0:00:10]} 36. Kg2 {[%clk 0:00:07]}  Rg3+ {[%clk 0:00:09]} 37. Kf2 {[%clk 0:00:07]}  Bc6 {[%clk 0:00:10]} 38. Re7 {[%clk 0:00:03]}  Rxf3+ {[%clk 0:00:09]} 39. Ke2 {[%clk 0:00:02]}  Re3+ {[%clk 0:00:10]} 40. Rxe3 {[%clk 0:00:02]}  fxe3 {[%clk 0:00:11]} 41. Kxe3 {[%clk 0:00:02]}  a5 {[%clk 0:00:10]} 42. c4 {[%clk 0:00:02]}  Re8+ {[%clk 0:00:09]} 43. Kd3 {[%clk 0:00:02]}  a4 {[%clk 0:00:09]} 44. d5 {[%clk 0:00:02]}  Bd7 {[%clk 0:00:10]} 45. Rf1 {[%clk 0:00:02]}  Rf8 {[%clk 0:00:09]} 46. Re1 {[%clk 0:00:02]}  Kf7 {[%clk 0:00:09]} 47. Rf1+ {[%clk 0:00:02]}  Ke7 {[%clk 0:00:10]} 48. Re1+ {[%clk 0:00:03]}  Kd8 {[%clk 0:00:10]} 49. Rh1 {[%clk 0:00:03]}  h6 {[%clk 0:00:09]} 50. g5 {[%clk 0:00:04]}  Bf5+ {[%clk 0:00:09]} 51. Kd4 {[%clk 0:00:04]}  hxg5 {[%clk 0:00:09]} 52. Rh5 {[%clk 0:00:05]}  Bg6 {[%clk 0:00:08]} 53. Rxg5 {[%clk 0:00:06]}  Rf6 {[%clk 0:00:08]} 54. Rg4 {[%clk 0:00:06]}  Be8 {[%clk 0:00:07]} 55. Rg1 {[%clk 0:00:07]}  Ke7 {[%clk 0:00:06]} 56. Ra1 {[%clk 0:00:08]}  Kf7 {[%clk 0:00:05]} 57. Ke4 {[%clk 0:00:08]}  g5 {[%clk 0:00:04]} 58. Ke3 {[%clk 0:00:09]}  Kg6 {[%clk 0:00:04]} 59. Rg1 {[%clk 0:00:10]}  Rf4 {[%clk 0:00:04]} 60. Rh1 {[%clk 0:00:11]}  Rxc4 {[%clk 0:00:03]} 61. Rh8 {[%clk 0:00:12]}  Bf7 {[%clk 0:00:03]} 62. Rf8 {[%clk 0:00:12]}  a3 {[%clk 0:00:03]} 63. Ra8 {[%clk 0:00:13]}  Rc3+ {[%clk 0:00:01]} 64. Kd4 {[%clk 0:00:13]}  Rg3 {[%clk 0:00:02]} 65. Ra4 {[%clk 0:00:13]}  Rg4+ {[%clk 0:00:01]} 66. Kd3 {[%clk 0:00:14]}  Rxa4 {[%clk 0:00:02]} 67. Kc3 {[%clk 0:00:15]}  a2 {[%clk 0:00:03]} 68. Kb3 {[%clk 0:00:16]}  a1=Q {[%clk 0:00:03]} 69. Kc2 {[%clk 0:00:15]}  Ra3 {[%clk 0:00:03]} 70. Kd2 {[%clk 0:00:16]}  Qa2+ {[%clk 0:00:04]} 71. Ke1 {[%clk 0:00:16]}  Qb3 {[%clk 0:00:04]} 72. Kd2 {[%clk 0:00:17]}  Ra2+ {[%clk 0:00:04]} 73. Kc1 {[%clk 0:00:17]}  Qb1+ {[%clk 0:00:05]} 74. Kxb1 {[%clk 0:00:18]}  Rf2 {[%clk 0:00:05]} 75. Kc1 {[%clk 0:00:18]}  Rf5 {[%clk 0:00:06]} 76. Kb1 {[%clk 0:00:19]}  g4 {[%clk 0:00:06]} 77. Kb2 {[%clk 0:00:20]}  g3 {[%clk 0:00:07]} 78. Kb3 {[%clk 0:00:21]}  g2 {[%clk 0:00:08]} 79. Kb4 {[%clk 0:00:22]}  g1=Q {[%clk 0:00:08]} 80. Kb5 {[%clk 0:00:23]}  Be8+ {[%clk 0:00:08]} 81. Ka6 {[%clk 0:00:23]}  Qd4 {[%clk 0:00:08]} 82. Kb7 {[%clk 0:00:24]}  Qxd5+ {[%clk 0:00:08]} 83. Kc8 {[%clk 0:00:25]}  c5 {[%clk 0:00:08]} 84. Kd8 {[%clk 0:00:25]}  Qc6 {[%clk 0:00:07]} 85. Ke7 {[%clk 0:00:26]}  Qd7# {[%clk 0:00:08]} 0-1


[Site "https://www.chess.com"]